bitfinex/quotes_SOLUSD_20260108
["timestamp","ask_amount","ask_price","bid_price","bid_amount"]
[1767895823546,5.69511933,138.89,138.84,5.69511933]
[1767895823818,6.39335733,138.89,138.84,5.69511933]
[1767895824026,0.698238,138.87,138.83,1.54447839]
[1767895824232,0.698238,138.87,138.83,7.23959772]
[1767895824406,0.698238,138.87,138.83,5.69511933]
[1767895824709,0.698238,138.87,138.84,7.20239935]
[1767895824910,0.698238,138.87,138.83,5.69511933]
[1767895825495,0.698238,138.86,138.81,18.00969998]
[1767895825700,0.698238,138.86,138.82,5.69511933]
[1767895825906,0.698238,138.86,138.83,5.69511933]
[1767895826411,0.698238,138.86,138.83,12.89816905]
[1767895826605,0.698238,138.86,138.83,5.69511933]
[1767895826810,0.698238,138.85,138.81,5.69511933]
[1767895828314,13.59454838,138.87,138.82,5.69511933]
[1767895828720,0.698238,138.86,138.82,5.69511933]
[1767895829209,0.698238,138.85,138.81,12.89888716]
[1767895829823,0.698238,138.85,138.82,7.20356736]
[1767895830210,0.698238,138.85,138.82,12.89868669]
[1767895831322,0.698238,138.85,138.83,5.69511933]
[1767895831522,0.698238,138.83,138.79,7.20482228]
[1767895831700,0.698238,138.82,138.77,23.71006877]
[1767895831906,0.099,138.8,138.75,23.71253357]
[1767895832705,0.099,138.8,138.77,7.20613322]
[1767895832929,5.69511933,138.81,138.77,7.20613322]
[1767895833330,5.69511933,138.81,138.77,25.22155442]
[1767895833831,13.14,138.82,138.77,25.22155442]
[1767895834027,5.69511933,138.83,138.78,5.69511933]
[1767895834214,5.69511933,138.83,138.77,25.22155442]
[1767895834420,13.14,138.84,138.78,0.70935987]
[1767895834421,5.69511933,138.82,138.78,0.70935987]
[1767895834841,5.69511933,138.83,138.79,0.70935987]
[1767895835018,0.099,138.83,138.78,5.69511933]
[1767895835213,0.099,138.83,138.8,7.20461095]
[1767895835431,0.099,138.83,138.78,24.70197834]
[1767895835935,0.49523562,138.82,138.78,23.70829533]
[1767895836641,6.19435733,138.84,138.79,7.2050588]
[1767895836843,19.33435733,138.84,138.79,7.2050588]
[1767895837140,19.33435733,138.84,138.79,12.90017813]
[1767895838567,5.79411933,138.83,138.79,7.2050588]
[1767895838735,0.49523562,138.82,138.79,7.2050588]
[1767895840127,5.69035495,138.83,138.79,7.2050588]
[1767895840536,5.69511933,138.83,138.79,7.2050588]
[1767895840741,13.14,138.84,138.79,7.2050588]
[1767895841049,5.69511933,138.83,138.79,7.2050588]
[1767895841427,18.83511933,138.84,138.79,12.90017813]
[1767895842427,18.83511933,138.84,138.79,7.2050588]
[1767895842631,2.12786512,138.83,138.79,7.2050588]
[1767895842928,15.26786512,138.84,138.79,7.2050588]
[1767895843134,2.12786512,138.83,138.79,7.2050588]
[1767895843327,2.12786512,138.83,138.79,7.91441867]
[1767895844135,15.26786512,138.84,138.79,7.91441867]
[1767895844345,15.26786512,138.84,138.79,10.04228379]
[1767895845025,15.26786512,138.84,138.79,7.91441867]
[1767895845239,13.14,138.84,138.79,10.04228379]
[1767895845438,15.26786512,138.84,138.79,10.04228379]
[1767895845639,15.26786512,138.84,138.79,7.91441867]
[1767895845847,13.14,138.84,138.79,10.04228379]
[1767895846072,15.26786512,138.84,138.79,10.04228379]
[1767895847049,15.26786512,138.84,138.8,0.70935987]
[1767895847246,2.12786512,138.83,138.79,7.2050588]
[1767895847446,2.12786512,138.82,138.79,7.2050588]
[1767895847645,2.12786512,138.82,138.78,7.91500078]
[1767895847952,2.12786512,138.82,138.78,0.70935987]
[1767895848150,2.12786512,138.82,138.78,7.91476265]
[1767895848349,2.12786512,138.8,138.76,7.20649791]
[1767895848548,25.2088919,138.84,138.75,0.70935987]
[1767895848549,2.12786512,138.79,138.75,7.91637398]
[1767895848851,2.12786512,138.8,138.75,7.91637398]
[1767895849046,2.12786512,138.77,138.73,7.20794068]
[1767895849751,2.12786512,138.76,138.72,0.90935987]
[1767895849951,2.12786512,138.75,138.72,0.2]
[1767895850155,2.12786512,138.74,138.71,0.70935987]
[1767895850456,2.12786512,138.74,138.7,7.91895043]
[1767895850626,3.32940528,138.74,138.7,7.91895043]
[1767895850831,3.32940528,138.74,138.71,7.2091116]
[1767895851032,16.48940528,138.75,138.72,7.20868034]
[1767895851251,13.16,138.75,138.72,7.20868034]
[1767895851563,3.32940528,138.76,138.72,7.20868034]
[1767895851746,16.48940528,138.76,138.72,7.20868034]
[1767895852852,3.32940528,138.75,138.72,7.20868034]
[1767895853642,3.32940528,138.75,138.71,0.70935987]
[1767895853828,3.32940528,138.74,138.71,0.70935987]
[1767895854038,3.32940528,138.73,138.69,7.91956762]
[1767895854238,164.3,138.89,138.73,0.70935987]
[1767895854458,3.32940528,138.8,138.75,4.03876515]
[1767895855348,7.20461095,138.8,138.77,3.32940528]
[1767895855737,7.20461095,138.8,138.76,3.32940528]
[1767895856653,7.20461095,138.8,138.76,9.26575641]
[1767895856852,16.47036736,138.8,138.75,9.26575641]
[1767895857044,16.47036736,138.8,138.74,7.91692185]
[1767895857240,25.21613832,138.8,138.73,7.20823232]
[1767895857453,9.26575641,138.79,138.74,9.26575641]
[1767895857964,9.26575641,138.77,138.72,17.18378229]
[1767895858337,13.16,138.77,138.73,9.26575641]
[1767895858654,13.16,138.77,138.72,17.18378229]
[1767895858655,22.42575641,138.77,138.72,17.18378229]
[1767895858846,29.63198786,138.77,138.72,7.91802588]
[1767895859156,9.26575641,138.8,138.75,9.97511628]
[1767895859353,16.46984833,138.81,138.76,9.26575641]
[1767895859568,29.62984833,138.81,138.76,9.26575641]
[1767895860276,9.26575641,138.8,138.75,9.97511628]
[1767895860567,13.16,138.81,138.75,7.91634659]
[1767895860743,22.42575641,138.81,138.76,9.26575641]
[1767895861131,9.26575641,138.8,138.75,0.70935987]
[1767895861336,9.26575641,138.8,138.75,9.97511628]
[1767895861750,9.26575641,138.79,138.74,16.47325978]
[1767895861946,9.26575641,138.79,138.74,17.18261965]
[1767895862151,38.37446333,138.81,138.73,9.97511628]
[1767895862343,9.26575641,138.78,138.73,9.97511628]
[1767895862752,9.26575641,138.78,138.73,17.18330797]
[1767895862753,29.63162553,138.78,138.73,17.18330797]
[1767895864352,38.37999219,138.78,138.7,7.20968667]
[1767895864567,9.26575641,138.75,138.71,7.20923575]
[1767895864767,16.4729779,138.75,138.71,7.87569993]
[1767895865148,16.4729779,138.75,138.72,0.66646418]
[1767895865669,16.4729779,138.75,138.71,7.9270186]
[1767895865976,16.4729779,138.75,138.71,0.71778285]
[1767895866553,9.26575641,138.73,138.69,7.92800386]
[1767895866747,9.26575641,138.73,138.68,7.92839043]
[1767895867171,9.26575641,138.72,138.68,7.92854993]
[1767895867670,9.26575641,138.72,138.68,0.71778285]
[1767895867969,22.42575641,138.72,138.68,0.71778285]
[1767895868363,9.26575641,138.71,138.68,0.71778285]
[1767895869170,9.26575641,138.71,138.66,7.92952963]
[1767895869359,9.26575641,138.69,138.66,0.71778285]
[1767895869559,9.26575641,138.7,138.66,0.71778285]
[1767895869765,9.26575641,138.7,138.64,18.03207274]
[1767895869766,9.26575641,138.69,138.64,17.1963443]
[1767895869955,9.26575641,138.69,138.65,0.71778285]
[1767895870151,16.47645207,138.69,138.65,0.71778285]
[1767895870351,7.21069566,138.69,138.65,0.71778285]
[1767895870571,9.26575641,138.69,138.65,7.93013185]
[1767895870753,9.26575641,138.69,138.66,0.71778285]
[1767895871487,9.26575641,138.73,138.68,0.71778285]
[1767895871782,9.26575641,138.73,138.68,9.98353926]
[1767895871783,22.42575641,138.73,138.68,9.98353926]
[1767895872368,9.26575641,138.72,138.68,0.71778285]
[1767895872572,16.47452226,138.72,138.68,0.71778285]
[1767895873056,20.36837105,138.73,138.68,7.92849605]
[1767895873458,9.26575641,138.72,138.68,7.92849605]
[1767895873685,29.63412746,138.73,138.68,7.92849605]
[1767895873886,9.26575641,138.72,138.68,7.92849605]
[1767895874483,16.47458792,138.72,138.68,0.71778285]
[1767895877388,9.26575641,138.71,138.67,7.92893968]
[1767895877578,16.47458792,138.72,138.67,17.19469609]
[1767895877785,16.47458792,138.72,138.68,0.71778285]
[1767895877980,9.26575641,138.71,138.67,7.92893968]
[1767895878484,7.20883151,138.72,138.67,7.92893968]
[1767895878684,13.16,138.73,138.7,0.71778285]
[1767895879066,13.16,138.73,138.69,0.71778285]
[1767895879469,29.63402627,138.73,138.69,0.71778285]
[1767895880682,7.2072072,138.75,138.7,0.71778285]
[1767895880995,9.26575641,138.73,138.7,0.71778285]
[1767895881290,9.26575641,138.73,138.69,0.71778285]
[1767895881479,9.26575641,138.71,138.67,0.71778285]
[1767895881679,9.26575641,138.69,138.65,0.71778285]
[1767895881876,22.42575641,138.68,138.64,0.71778285]
[1767895882073,13.16,138.68,138.65,7.93007758]
[1767895882466,9.26575641,138.69,138.65,7.93007758]
[1767895882672,9.26575641,138.68,138.64,0.71778285]
[1767895883786,38.39623306,138.69,138.64,0.71778285]
[1767895883990,9.26575641,138.68,138.64,0.71778285]
[1767895884287,38.39623306,138.69,138.63,0.2]
[1767895884474,9.26575641,138.64,138.6,0.71778285]
[1767895884674,20.37336631,138.64,138.6,0.71778285]
[1767895885087,9.26575641,138.63,138.6,0.71778285]
[1767895885288,9.26575641,138.61,138.58,0.2]
[1767895885473,9.26575641,138.6,138.58,0.2]
[1767895885679,13.16,138.6,138.58,0.2]
[1767895885989,13.12999994,138.6,138.58,0.2]
[1767895887468,13.12999994,138.6,138.58,0.91778285]
[1767895888271,13.12999994,138.6,138.58,0.2]
[1767895888484,13.12999994,138.6,138.55,9.26575641]
[1767895888485,20.34505292,138.6,138.55,0.71778285]
[1767895888688,9.26575641,138.58,138.55,0.71778285]
[1767895888866,16.45191215,138.58,138.55,0.71778285]
[1767895889070,9.26575641,138.57,138.54,0.2]
[1767895889493,22.42575641,138.57,138.54,0.2]
[1767895889794,13.16,138.57,138.54,0.2]
[1767895890381,13.16,138.57,138.55,0.71778285]
[1767895890579,21.59594506,138.64,138.55,0.71778285]
[1767895890899,9.26575641,138.67,138.62,9.98353926]
[1767895891122,9.26575641,138.65,138.62,0.71778285]
[1767895891299,13.16,138.65,138.63,0.71778285]
[1767895891600,0.71668641,138.71,138.64,0.71778285]
[1767895891776,0.71668641,138.71,138.62,16.4794767]
[1767895891777,13.27119281,138.72,138.67,0.71778285]
[1767895891978,9.26575641,138.71,138.67,0.71778285]
[1767895892283,9.26575641,138.7,138.67,0.71778285]
[1767895892479,6.6801107,138.73,138.69,0.70481737]
[1767895892797,0.6941357,138.76,138.69,0.70481737]
[1767895892976,22.42575641,138.75,138.71,0.70481737]
[1767895893382,13.16,138.75,138.71,0.70481737]
[1767895893577,9.26575641,138.75,138.71,0.70481737]
[1767895893803,9.26575641,138.74,138.71,0.70481737]
[1767895894190,39.07754301,138.76,138.71,0.70481737]
[1767895894505,9.26575641,138.75,138.71,0.70481737]
[1767895894897,7.20772668,138.74,138.71,0.70481737]
[1767895895104,31.87085521,138.76,138.71,0.70481737]
[1767895895301,5.00499591,138.74,138.71,0.70481737]
[1767895895495,9.26575641,138.74,138.71,0.70481737]
[1767895895684,13.16,138.76,138.71,0.70481737]
[1767895895886,22.42575641,138.76,138.72,0.70481737]
[1767895896200,29.63260028,138.76,138.72,0.70481737]
[1767895896797,20.36684387,138.76,138.72,0.70481737]
[1767895896991,29.63260028,138.76,138.72,0.70481737]
[1767895897513,20.36684387,138.76,138.72,0.70481737]
[1767895897696,29.63260028,138.76,138.72,0.70481737]
[1767895899012,9.26575641,138.75,138.72,0.70481737]
[1767895900987,9.26575641,138.75,138.69,9.26575641]
[1767895900988,7.20876585,138.72,138.69,0.70481737]
[1767895901190,16.47452226,138.72,138.69,0.70481737]
[1767895901998,9.26575641,138.71,138.69,0.70481737]
[1767895902302,9.26575641,138.71,138.65,9.26575641]
[1767895902494,9.26575641,138.71,138.66,9.26575641]
[1767895903204,9.26575641,138.69,138.64,22.42575641]
[1767895903400,9.26575641,138.69,138.64,29.63864943]
[1767895903704,9.26575641,138.69,138.64,16.47864943]
[1767895903914,16.47556174,138.7,138.65,9.26575641]
[1767895904211,16.47556174,138.7,138.66,0.70481737]
[1767895904415,103.38432314,138.75,138.66,0.70481737]
[1767895904416,103.7941357,138.75,138.67,9.97057378]
[1767895904633,0.6941357,138.81,138.75,0.70481737]
[1767895904799,17.16190867,138.85,138.79,9.26575641]
[1767895904994,7.89615226,138.85,138.8,9.26575641]
[1767895905721,17.16190867,138.85,138.8,9.26575641]
[1767895906830,0.6941357,138.83,138.79,9.26575641]
[1767895907295,17.16290685,138.84,138.79,9.26575641]
[1767895907501,7.20301474,138.84,138.8,0.70481737]
[1767895907697,7.20301474,138.84,138.8,9.97057378]
[1767895907895,7.20301474,138.84,138.8,0.70481737]
[1767895908108,17.16290685,138.84,138.79,0.70481737]
[1767895908403,17.16290685,138.84,138.79,9.97057378]
[1767895908607,17.16290685,138.84,138.79,0.70481737]
[1767895908828,7.89778109,138.82,138.78,9.26575641]
[1767895909130,9.95989211,138.84,138.79,9.26575641]
[1767895909306,9.95989211,138.84,138.78,9.26575641]
[1767895909628,13.16,138.86,138.77,9.26575641]
[1767895909629,17.16310812,138.83,138.77,9.26575641]
[1767895909828,0.6941357,138.82,138.75,20.36702941]
[1767895910007,9.95989211,138.82,138.76,9.26575641]
[1767895910209,9.26575641,138.81,138.76,9.26575641]
[1767895910623,9.26575641,138.8,138.74,20.36756725]
[1767895910828,7.20513005,138.79,138.75,9.26575641]
[1767895911717,16.47088646,138.79,138.74,9.32230192]
[1767895912018,7.20513005,138.79,138.74,16.53000503]
[1767895912208,7.20513005,138.79,138.75,9.32230192]
[1767895912613,7.20513005,138.79,138.74,5.70241388]
[1767895913305,13.60167963,138.79,138.73,20.42457824]
[1767895913510,5.70241388,138.78,138.73,18.91895939]
[1767895914218,5.70241388,138.78,138.73,0.05654551]
[1767895914525,7.89718979,138.83,138.77,5.75895939]
[1767895914738,13.59960367,138.83,138.77,5.75895939]
[1767895915434,0.6941357,138.82,138.77,5.75895939]
[1767895916329,6.39654958,138.82,138.77,5.75895939]
[1767895916927,6.39654958,138.82,138.77,5.70241388]
[1767895917118,0.6941357,138.82,138.77,5.70241388]
[1767895917623,0.6941357,138.82,138.76,7.26306753]
[1767895917624,13.60062557,138.82,138.76,7.26306753]
[1767895917812,7.89821169,138.82,138.76,7.26306753]
[1767895918130,13.60062557,138.82,138.77,5.70241388]
[1767895919228,0.6941357,138.82,138.77,12.96495506]
[1767895919419,7.89729542,138.83,138.78,5.70241388]
[1767895919620,7.89729542,138.83,138.78,12.9079208]
[1767895920134,5.70241388,138.82,138.77,0.05654551]
[1767895920314,6.39654958,138.82,138.77,5.75895939]
[1767895920835,5.70241388,138.81,138.76,5.70241388]
[1767895921142,6.39654958,138.81,138.76,5.70241388]
[1767895921522,6.39654958,138.79,138.73,5.75895939]
[1767895921725,6.39654958,138.78,138.73,0.05654551]
[1767895921926,5.70241388,138.77,138.72,26.12750932]
[1767895922325,5.70241388,138.77,138.72,12.96750932]
[1767895922518,6.39654958,138.78,138.73,7.20823034]
[1767895923218,6.39654958,138.78,138.72,12.96750763]
[1767895923431,5.70241388,138.77,138.72,12.96750763]
[1767895923931,13.6026453,138.78,138.73,5.70241388]
[1767895924330,7.90023142,138.78,138.73,5.70241388]
[1767895924720,7.90023142,138.78,138.73,12.91042703]
[1767895924930,13.6026453,138.78,138.73,12.91042703]
[1767895925747,0.72140504,138.77,138.73,12.91042703]
[1767895926639,0.72140504,138.76,138.72,12.91098067]
[1767895927150,0.72140504,138.77,138.73,12.91055144]
[1767895927952,7.92676124,138.79,138.75,5.70241388]
[1767895928549,0.72140504,138.78,138.74,5.70241388]
[1767895928959,7.92712661,138.78,138.73,26.12709695]
[1767895929130,0.72140504,138.77,138.73,13.16]
[1767895929327,0.72140504,138.76,138.69,0.14216157]
[1767895929541,0.72140504,138.76,138.71,5.70241388]
[1767895929727,0.72140504,138.76,138.7,13.16]
[1767895929928,0.72140504,138.76,138.71,5.70241388]
[1767895930128,0.72140504,138.73,138.7,13.16]
[1767895930349,0.69140501,138.73,138.7,13.16]
[1767895931350,0.69140501,138.73,138.69,7.21011474]
[1767895931548,6.39381889,138.73,138.69,7.21011474]
[1767895931750,12.910903,138.73,138.67,12.91356388]
[1767895932054,5.70241388,138.71,138.66,7.211583]
[1767895932261,0.72140504,138.71,138.67,7.21118339]
[1767895933157,0.72140504,138.71,138.66,12.91409766]
[1767895934036,0.72140504,138.71,138.67,5.70241388]
[1767895934257,0.72140504,138.71,138.67,5.78895942]
[1767895934467,0.72140504,138.72,138.68,5.70241388]
[1767895934634,13.6318752,138.74,138.69,5.70241388]
[1767895934952,7.92946132,138.74,138.69,5.78895942]
[1767895935471,13.6318752,138.74,138.69,12.99913842]
[1767895936562,0.72140504,138.74,138.7,5.70241388]
[1767895937060,7.20734304,138.75,138.71,5.70241388]
[1767895937278,7.92874808,138.75,138.71,5.70241388]
[1767895937554,7.2067889,138.76,138.71,12.99806582]
[1767895937758,13.6301998,138.77,138.72,5.70241388]
[1767895938265,0.72140504,138.75,138.71,12.91152028]
[1767895940662,0.72140504,138.75,138.72,5.70241388]
[1767895941358,0.72140504,138.75,138.71,7.2091064]
[1767895941652,7.92862679,138.75,138.7,26.15852722]
[1767895941959,0.72140504,138.74,138.7,20.3695678]
[1767895942140,0.72140504,138.74,138.7,26.07198168]
[1767895942541,0.72140504,138.74,138.7,26.15852722]
[1767895943463,0.72140504,138.74,138.7,5.70241388]
[1767895944946,0.72140504,138.74,138.7,12.91213098]
[1767895945462,0.72140504,138.74,138.71,5.70241388]
[1767895945964,0.72140504,138.74,138.7,12.91213098]
[1767895946749,0.72140504,138.74,138.71,5.70241388]
[1767895946950,0.72140504,138.74,138.7,7.2097171]
[1767895947146,0.72140504,138.74,138.7,12.91213098]
[1767895947346,0.72140504,138.74,138.7,7.2097171]
[1767895947758,0.72140504,138.73,138.69,26.15920874]
[1767895948053,0.72140504,138.73,138.7,7.20969839]
[1767895949168,0.72140504,138.75,138.7,12.99865781]
[1767895949970,7.92874358,138.75,138.7,12.99865781]
[1767895950466,0.72140504,138.73,138.69,13.16]
[1767895950668,0.72140504,138.7,138.66,7.21159471]
[1767895950848,5.70241388,138.67,138.62,0.2]
[1767895951051,5.70241388,138.66,138.62,7.41391046]
[1767895951567,5.70241388,138.65,138.62,0.2]
[1767895951973,5.70241388,138.67,138.62,13.11626303]
[1767895952354,20.3705604,138.69,138.62,31.15117862]
[1767895952672,5.70241388,138.68,138.62,31.15117862]
[1767895952875,0.70042557,138.67,138.62,31.15117862]
[1767895953585,0.70042557,138.64,138.62,0.2]
[1767895953883,0.70042557,138.66,138.62,7.4137473]
[1767895954175,6.40283945,138.66,138.62,7.4137473]
[1767895954351,0.70042557,138.66,138.62,7.4137473]
[1767895954552,0.70042557,138.67,138.62,13.23270674]
[1767895954853,6.40283945,138.69,138.63,6.10328258]
[1767895955059,0.70042557,138.68,138.64,5.70241388]
[1767895955268,0.70042557,138.68,138.64,26.07514584]
[1767895955677,0.70042557,138.66,138.62,0.48432314]
[1767895955976,0.70042557,138.66,138.62,6.30328258]
[1767895956176,7.91129148,138.68,138.62,0.6008687]
[1767895956372,6.40283945,138.67,138.62,6.30328258]
[1767895956776,6.40283945,138.67,138.63,7.21312722]
[1767895957157,0.70042557,138.65,138.62,0.48432314]
[1767895957366,6.40283945,138.65,138.62,0.2]
[1767895957886,0.70042557,138.62,138.57,0.2]
[1767895958105,6.40283945,138.6,138.57,0.2]
[1767895958263,0.70042557,138.59,138.57,0.2]
[1767895960085,0.70042557,138.61,138.57,7.41646527]
[1767895960470,0.70042557,138.6,138.57,7.41646527]
[1767895960674,0.70042557,138.6,138.57,0.2]
[1767895960872,6.40283945,138.58,138.54,0.2]
[1767895961194,0.70042557,138.57,138.54,0.2]
[1767895961690,0.70042557,138.56,138.54,0.2]
[1767895962995,0.70042557,138.54,138.51,0.2]
[1767895963176,0.70042557,138.53,138.51,0.2]
[1767895963382,6.40283945,138.52,138.5,0.2]
[1767895963694,0.70042557,138.52,138.5,0.2]
[1767895965272,0.70042557,138.55,138.5,13.63912007]
[1767895965892,0.70042557,138.55,138.5,13.12257451]
[1767895966097,0.70042557,138.54,138.5,5.90241388]
[1767895966397,0.70042557,138.54,138.5,0.2]
[1767895967274,6.40283945,138.53,138.5,0.2]
[1767895967491,0.70042557,138.52,138.5,0.2]
[1767895967691,6.40283945,138.52,138.5,0.2]
[1767895968213,0.70042557,138.52,138.5,0.2]
[1767895969870,13.62103946,138.54,138.5,0.2]
[1767895970279,0.70042557,138.53,138.5,0.2]
[1767895970611,6.40283945,138.53,138.5,0.2]
[1767895970786,0.70042557,138.53,138.5,0.2]
[1767895970984,0.70042557,138.53,138.5,7.42021302]
[1767895971187,0.70042557,138.53,138.5,0.2]
[1767895971398,6.40283945,138.53,138.5,0.2]
[1767895971615,0.70042557,138.53,138.5,0.2]
[1767895971887,0.70042557,138.53,138.5,7.42012357]
[1767895973590,6.40283945,138.55,138.5,7.93666913]
[1767895973906,13.62030486,138.56,138.51,6.21895944]
[1767895974207,0.70042557,138.55,138.51,6.21895944]
[1767895974509,0.70042557,138.55,138.51,9.81508575]
[1767895974807,0.70042557,138.55,138.51,0.51654556]
[1767895975211,0.70042557,138.55,138.51,7.73608598]
[1767895975508,17.21677213,138.55,138.51,0.51654556]
[1767895975902,0.70042557,138.55,138.51,7.7361884]
[1767895976103,0.70042557,138.55,138.51,17.03472859]
[1767895976423,0.70042557,138.54,138.5,10.01508575]
[1767895976726,0.70042557,138.54,138.5,0.2]
[1767895977209,0.70042557,138.54,138.5,7.42009015]
[1767895977408,17.21713892,138.54,138.5,0.2]
[1767895978108,0.70042557,138.51,138.5,0.2]
[1767895978491,9.99896576,138.53,138.5,0.2]
[1767895978697,9.80357437,138.53,138.5,0.2]
[1767895979113,17.02247323,138.53,138.5,0.2]
[1767895979408,0.50503418,138.53,138.5,0.2]
[1767895980502,7.72376795,138.53,138.5,0.2]
[1767895980714,0.50503418,138.53,138.5,0.2]
[1767895980917,17.02237775,138.53,138.5,0.2]
[1767895981508,9.80357437,138.53,138.5,0.2]
[1767895981818,17.02225049,138.53,138.5,0.2]
[1767895981995,0.50503418,138.53,138.5,7.42015073]
[1767895982694,0.50503418,138.53,138.5,0.2]
[1767895982922,0.50503418,138.53,138.5,7.42020536]
[1767895983511,0.50503418,138.53,138.5,0.2]
[1767895983707,7.88053208,138.55,138.5,17.39584731]
[1767895984110,7.21723527,138.56,138.51,9.97573359]
[1767895984417,17.178471,138.56,138.52,0.6771934]
[1767895984808,17.178471,138.56,138.51,9.29854019]
[1767895985001,17.178471,138.56,138.51,9.97573359]
[1767895985210,0.66269554,138.55,138.51,17.19533238]
[1767895985516,0.66269554,138.55,138.51,7.89679219]
[1767895985817,0.66269554,138.55,138.51,17.19533238]
[1767895986015,0.66269554,138.55,138.5,0.2]
[1767895986016,9.98921725,138.52,138.5,0.2]
[1767895986398,0.69067706,138.52,138.5,0.2]
[1767895987319,17.20844698,138.52,138.5,0.2]
[1767895987503,7.90990679,138.52,138.5,0.2]
[1767895987701,17.20844698,138.52,138.5,0.2]
[1767895988217,7.90990679,138.52,138.5,0.2]
[1767895988721,17.20844698,138.52,138.5,0.2]
[1767895989419,0.69067706,138.51,138.49,0.2]
[1767895990123,17.20930604,138.51,138.49,0.2]
[1767895990425,7.91076585,138.51,138.49,0.2]
[1767895991523,17.20930604,138.51,138.49,0.2]
[1767895993135,0.69067706,138.51,138.49,0.2]
[1767895993507,7.91041238,138.51,138.49,0.2]
[1767895993707,17.20895257,138.51,138.49,0.2]
[1767895993903,9.98921725,138.5,138.48,0.2]
[1767895994127,9.98921725,138.49,138.44,17.24425247]
[1767895994325,9.98921725,138.49,138.44,0.86465538]
[1767895994627,9.98921725,138.49,138.44,8.22993892]
[1767895995525,9.98921725,138.49,138.45,7.94523872]
[1767895996801,7.91058004,138.51,138.46,10.021034]
[1767895997023,17.20912023,138.51,138.46,0.72249381]
[1767895997230,17.20912023,138.51,138.46,10.021034]
[1767895997619,0.69067706,138.5,138.44,8.08775795]
[1767895997822,0.69067706,138.49,138.44,17.38629814]
[1767895998026,0.69067706,138.49,138.45,0.72249381]
[1767895998226,0.69067706,138.49,138.45,10.021034]
[1767895999234,7.91145855,138.49,138.45,0.72249381]
[1767895999813,0.69067706,138.51,138.46,10.021034]
[1767896000113,0.69067706,138.5,138.46,17.24316487]
[1767896002322,7.91013528,138.52,138.48,0.72249381]
[1767896002520,0.69067706,138.51,138.47,10.021034]
[1767896003941,7.91042751,138.51,138.47,0.72249381]
[1767896005637,7.91042751,138.51,138.47,10.021034]
[1767896005828,0.69067706,138.5,138.46,10.30535714]
[1767896006140,0.69067706,138.5,138.46,10.021034]
[1767896007948,0.69067706,138.5,138.46,0.72249381]
[1767896008646,7.91100121,138.5,138.46,0.72249381]
[1767896011654,0.69067706,138.47,138.43,9.29854019]
[1767896011844,0.66067706,138.47,138.43,10.021034]
[1767896012149,9.29854019,138.49,138.44,0.72249381]
[1767896012354,9.29854019,138.49,138.44,17.24401538]
[1767896012539,9.29854019,138.48,138.42,0.99450895]
[1767896012843,9.29854019,138.48,138.43,16.52237433]
[1767896013047,9.29854019,138.47,138.42,10.008726]
[1767896013948,10.00320489,138.47,138.42,10.008726]
[1767896015250,7.9267871,138.47,138.42,17.23308553]
[1767896015450,7.9267871,138.47,138.42,7.93454534]
[1767896015646,7.9267871,138.47,138.42,10.008726]
[1767896015838,17.22532729,138.47,138.42,10.008726]
[1767896016240,17.22532729,138.47,138.42,17.233086]
[1767896016444,7.9267871,138.47,138.42,17.233086]
[1767896016743,11.26922514,138.47,138.42,11.27698385]
[1767896017931,0.7046647,138.46,138.42,11.27698385]
[1767896018449,0.6746647,138.46,138.42,11.27698385]
[1767896019552,10.56456044,138.47,138.43,0.71018581]
[1767896020555,11.26922514,138.47,138.43,0.71018581]
[1767896022052,0.7046647,138.46,138.43,0.71018581]
[1767896025657,0.7046647,138.45,138.41,13.49709617]
[1767896025860,3.34243804,138.44,138.41,12.78691036]
[1767896026046,3.34243804,138.42,138.41,1e-08]
[1767896026764,3.34243804,138.43,138.41,1e-08]
[1767896027965,10.56655651,138.43,138.41,1e-08]
[1767896028175,3.34243804,138.43,138.41,1e-08]
[1767896028341,3.34243804,138.42,138.41,1e-08]
[1767896028540,20.40378049,138.44,138.41,1e-08]
[1767896028757,3.34243804,138.43,138.41,1e-08]
[1767896030344,10.56666819,138.43,138.41,1e-08]
[1767896031266,3.34243804,138.42,138.41,1e-08]
[1767896031867,7.22423015,138.43,138.41,1e-08]
[1767896032160,3.34243804,138.42,138.41,1e-08]
[1767896033355,10.56682757,138.42,138.41,1e-08]
[1767896035871,7.2240003,138.43,138.41,0.71018582]
[1767896036166,7.2240003,138.43,138.41,1e-08]
[1767896037969,7.22346336,138.44,138.41,0.71018582]
[1767896039042,9.36373101,138.44,138.41,1e-08]
[1767896039753,2.14026765,138.43,138.41,1e-08]
[1767896040045,9.36422024,138.43,138.41,1e-08]
[1767896040971,2.14026765,138.42,138.38,0.71018581]
[1767896041299,2.14026765,138.41,138.38,0.71018581]
[1767896041780,2.14026765,138.39,138.36,0.91018581]
[1767896041986,2.14026765,138.4,138.37,0.71018581]
[1767896042274,9.3661885,138.4,138.37,0.71018581]